bitfinex/quotes_ETHUSD_20250130
["timestamp","ask_amount","ask_price","bid_price","bid_amount"]
[1738272981874,0.05015863,3244.8,3244.4,8.45218]
[1738272982077,0.05015863,3244.8,3244.5,3.08208]
[1738272982311,0.05015863,3244.8,3244.4,6.73786293]
[1738272982504,3.08175,3244.9,3244.4,6.73786293]
[1738272982720,0.05022583,3244.7,3244.4,9.82004293]
[1738272982912,0.05026887,3244.8,3244.4,9.82004293]
[1738272983079,4.50424667,3245.0,3244.5,1.29023029]
[1738272983278,0.05022583,3244.7,3244.5,1.29023029]
[1738272983582,0.05018279,3244.6,3244.5,1.57864898]
[1738272983783,3.08179,3244.9,3244.5,1.57864898]
[1738272984076,0.05026887,3244.8,3244.5,1.57864898]
[1738272984306,0.05026887,3244.8,3244.6,1.0030829]
[1738272984678,4.50424667,3245.0,3244.6,1.0030829]
[1738272984878,0.05023911,3244.7,3244.6,1.0030829]
[1738272985212,4.50424667,3245.0,3244.7,0.28841869]
[1738272985418,3.74834667,3245.0,3244.7,5.65841869]
[1738272985580,3.74834667,3245.0,3244.7,6.63278185]
[1738272985581,3.74832667,3245.0,3244.7,6.63278185]
[1738272986814,3.74832667,3245.0,3244.8,0.28841869]
[1738272988807,3.74832667,3245.0,3244.9,0.28841869]
[1738272989776,3.798748,3245.0,3244.9,0.28841869]
[1738272989979,4.610148,3245.0,3244.9,0.28841869]
[1738272990918,4.610148,3245.0,3244.7,5.37]
[1738272991114,3.08182,3244.9,3244.7,5.37]
[1738272991618,0.05028215,3244.8,3244.7,5.37]
[1738272993118,3.13213215,3244.8,3244.7,5.37]
[1738272996332,0.05028215,3244.8,3244.7,5.37]
[1738272996633,4.55972667,3245.0,3244.7,5.37]
[1738272996932,3.13208846,3244.9,3244.7,5.37]
[1738273000133,0.05033846,3244.9,3244.7,5.37]
[1738273001137,3.13210846,3244.9,3244.7,5.37]
[1738273003432,0.05033846,3244.9,3244.7,5.37]
[1738273004054,3.13210846,3244.9,3244.7,5.37]
[1738273004704,0.05033846,3244.9,3244.7,5.37]
[1738273004901,3.87645,3244.8,3244.7,5.37]
[1738273005423,3.92676277,3244.8,3244.7,5.37]
[1738273005822,0.05031277,3244.8,3244.7,5.37]
[1738273007726,3.74834667,3245.0,3244.7,5.37]
[1738273007940,0.05052955,3244.8,3244.7,5.37]
[1738273008100,3.74834667,3245.0,3244.7,5.37]
[1738273008300,0.05052955,3244.8,3244.7,5.37]
[1738273008551,3.74834667,3245.0,3244.7,5.37]
[1738273008709,0.05052955,3244.8,3244.7,5.37]
[1738273008911,3.74834667,3245.0,3244.8,3.08183]
[1738273008912,0.66666667,3245.0,3244.8,3.08183]
[1738273009108,0.66666667,3245.0,3244.9,5.37]
[1738273010069,4.52332667,3245.0,3244.9,5.37]
[1738273012364,3.08176,3244.9,3244.5,5.37]
[1738273013465,4.52333667,3245.0,3244.5,10.33858539]
[1738273016631,3.08178,3244.9,3244.5,7.25645539]
[1738273016868,4.52333667,3245.0,3244.5,7.25645539]
[1738273017878,1.44166667,3245.0,3244.6,3.08203]
[1738273018059,1.44166667,3245.0,3244.7,1.03384854]
[1738273018966,0.66666667,3245.0,3244.7,1.03384854]
[1738273020097,0.05095814,3244.9,3244.7,1.03384854]
[1738273020305,3.91458,3245.2,3244.7,1.03384854]
[1738273020470,3.08156,3245.1,3244.6,5.37]
[1738273020675,0.0510094,3245.0,3244.6,5.37]
[1738273021266,3.1326794,3245.0,3244.6,5.37]
[1738273022197,3.08176,3244.9,3244.6,5.37]
[1738273022402,0.0510094,3245.0,3244.6,5.37]
[1738273022616,3.08194,3244.7,3244.6,5.37]
[1738273023103,3.13281209,3244.7,3244.6,5.37]
[1738273024404,3.08266,3244.0,3243.7,5.37]
[1738273024588,0.02294677,3244.1,3243.7,5.37]
[1738273024756,0.05052733,3243.9,3243.7,5.37]
[1738273024972,3.08271,3243.9,3243.7,5.37]
[1738273025168,3.96089755,3243.8,3243.7,5.37]
[1738273025403,0.87809755,3243.8,3243.7,5.37]
[1738273025601,0.05049755,3243.8,3243.7,5.37]
[1738273026149,0.05049755,3243.8,3243.7,9.457]
[1738273026268,0.05049755,3243.8,3243.7,14.0222739]
[1738273026467,3.90932,3245.0,3244.5,3.08213]
[1738273026468,0.8276,3245.0,3244.5,3.08213]
[1738273026663,0.04743944,3244.9,3244.5,8.45207]
[1738273026967,0.8276,3245.0,3244.6,3.08202]
[1738273027192,3.909,3245.3,3244.7,3.0819]
[1738273027715,3.909,3245.3,3244.7,3.08189]
[1738273027716,0.04555061,3245.2,3244.7,3.08189]
[1738273027918,0.04555061,3245.2,3244.8,3.08179]
[1738273028069,3.909,3245.3,3244.6,5.37]
[1738273028263,0.04559041,3245.2,3244.7,3.08194]
[1738273028484,0.04559041,3245.2,3244.9,3.0817]
[1738273028700,3.08124,3245.5,3244.9,3.08167]
[1738273028701,3.88394,3245.5,3244.9,3.08167]
[1738273028898,0.04559686,3245.4,3245.0,3.08163]
[1738273029132,0.04559686,3245.4,3244.9,3.08167]
[1738273031534,0.04559686,3245.4,3244.9,3.698028]
[1738273031712,3.12687686,3245.4,3244.9,3.698028]
[1738273031916,0.04559686,3245.4,3245.3,3.63137]
[1738273032116,0.04559686,3245.4,3245.3,9.03217779]
[1738273032317,0.8262,3246.3,3245.4,3.55]
[1738273032544,0.8262,3246.3,3245.8,3.08082]
[1738273032746,0.04149148,3245.9,3245.8,3.08082]
[1738273033335,0.8262,3246.5,3245.9,3.0808]
[1738273033733,0.70821441,3246.0,3245.7,0.55]
[1738273034558,0.70821441,3246.0,3245.7,0.913106]
[1738273035235,0.70821441,3246.0,3245.7,3.994036]
[1738273035933,0.70821441,3246.0,3245.8,5.37]
[1738273036756,0.66666667,3246.0,3245.8,5.37]
[1738273037265,0.04209707,3245.9,3245.8,5.37]
[1738273037558,0.04209707,3245.9,3245.8,6.3064166]
[1738273038862,0.04209707,3245.9,3245.8,12.7465596]
[1738273039060,0.04209707,3245.9,3245.8,15.8274596]
[1738273039263,0.66666667,3246.0,3245.9,3.6308]
[1738273039423,0.66666667,3246.0,3245.9,6.66160144]
[1738273039630,0.66666667,3246.0,3245.9,8.8610167]
[1738273041864,0.66666667,3246.0,3245.9,23.1610167]
[1738273043031,0.66666667,3246.0,3245.9,23.77159408]
[1738273045590,0.66666667,3246.0,3245.9,23.77909408]
[1738273045885,0.66666667,3246.0,3245.9,23.77159408]
[1738273054586,0.66666667,3246.0,3245.9,23.97859408]
[1738273060214,6.67e-06,3246.0,3245.9,24.04992888]
[1738273063784,6.67e-06,3246.0,3245.9,24.03492888]
[1738273066080,6.67e-06,3246.0,3245.9,23.82792888]
[1738273067409,6.67e-06,3246.0,3245.9,23.27792888]
[1738273067618,0.78780667,3246.0,3245.9,23.27792888]
[1738273067973,0.82644357,3246.0,3245.9,23.82792888]
[1738273068303,0.82644357,3246.0,3245.9,14.34792888]
[1738273068605,0.82644357,3246.0,3245.9,10.6565515]
[1738273068773,0.82644357,3246.0,3245.9,14.2873515]
[1738273068974,0.78780667,3246.0,3245.9,11.2065515]
[1738273069202,0.78780667,3246.0,3245.9,14.2873515]
[1738273069507,0.82626869,3246.0,3245.9,14.2873515]
[1738273070280,0.82626869,3246.0,3245.9,11.2065515]
[1738273070479,0.78780667,3246.0,3245.9,8.9763348]
[1738273071198,0.8260647,3246.0,3245.9,8.9763348]
[1738273071399,0.78780667,3246.0,3245.9,8.9763348]
[1738273071613,0.82612053,3246.0,3245.9,12.0571348]
[1738273071794,0.78780667,3246.0,3245.9,12.0571348]
[1738273071998,0.82612053,3246.0,3245.9,12.0571348]
[1738273076435,0.82612053,3246.0,3245.9,8.9763348]
[1738273076749,0.78780667,3246.0,3245.9,5.37]
[1738273076901,0.82595035,3246.0,3245.9,5.37]
[1738273082471,3.90666035,3246.0,3245.9,5.37]
[1738273082761,0.82595035,3246.0,3245.9,5.37]
[1738273083460,4.60538539,3246.0,3245.9,5.37]
[1738273083829,4.60538539,3246.0,3245.5,5.37]
[1738273084031,3.08109,3245.6,3245.5,5.37]
[1738273084256,0.7651,3245.6,3245.5,8.37]
[1738273085082,0.7651,3245.6,3245.5,5.37]
[1738273085261,0.7651,3245.6,3245.5,8.45118]
[1738273085814,0.80270275,3245.6,3245.5,8.45118]
[1738273086415,0.03760275,3245.6,3245.5,8.45118]
[1738273086614,0.7514,3245.9,3245.7,3.08094]
[1738273087014,6.67e-06,3246.0,3245.8,5.971043]
[1738273087213,6.67e-06,3246.0,3245.9,24.0992778]
[1738273087517,0.7632,3247.4,3247.0,3.07976]
[1738273087753,0.7632,3247.4,3247.1,3.07966]
[1738273088631,0.8332,3247.7,3247.2,3.07949]
[1738273089045,0.8332,3247.7,3247.3,3.0794]
[1738273091660,0.8332,3247.7,3247.2,3.66036146]
[1738273092144,0.8332,3247.7,3247.2,3.62957]
[1738273092334,0.8332,3247.7,3247.3,6.36072748]
[1738273092867,0.8332,3247.7,3247.3,6.3299363]
[1738273093439,0.03739702,3247.6,3247.4,0.55]
[1738273093762,3.07893,3247.9,3247.4,3.62937]
[1738273093918,0.03748293,3247.8,3247.4,5.82625363]
[1738273094118,0.7691,3248.0,3247.4,5.82625363]
[1738273094325,3.11645589,3247.9,3247.4,5.82625363]
[1738273095758,3.11645589,3247.9,3247.4,2.74688363]
[1738273096423,3.11645589,3247.9,3247.5,0.79654928]
[1738273097226,3.0791,3247.7,3247.3,6.3299363]
[1738273097426,6.19545589,3247.9,3247.3,6.3299363]
[1738273097664,3.07893,3247.9,3247.3,6.3299363]
[1738273097851,3.07918,3247.7,3247.3,6.3299363]
[1738273098261,0.03739702,3247.6,3247.3,6.3299363]
[1738273098669,3.07902,3247.8,3247.3,6.3299363]
[1738273098841,3.07893,3247.9,3247.3,6.3299363]
[1738273098842,0.03798095,3247.5,3247.3,6.3299363]
[1738273099044,3.07893,3247.9,3247.4,1.52599363]
[1738273100767,3.07893,3247.9,3247.4,4.60536363]
[1738273100966,3.07893,3247.9,3247.4,1.52599363]
[1738273101469,3.07903,3247.8,3247.4,1.52599363]
[1738273103166,3.0791,3247.7,3247.4,1.52599363]
[1738273103472,3.07901,3247.8,3247.4,1.52599363]
[1738273104374,3.07901,3247.8,3247.5,5.37]
[1738273109150,3.07901,3247.8,3247.5,6.46353999]
[1738273109796,0.03626371,3247.7,3247.5,6.46353999]
[1738273110305,3.84796,3248.0,3247.5,9.54280999]
[1738273110671,0.03634962,3247.9,3247.5,9.54280999]
[1738273114949,0.03634962,3247.9,3247.5,6.46353999]
[1738273115153,3.07892,3247.9,3247.5,6.46353999]
[1738273115353,0.03687304,3247.8,3247.5,6.46353999]
[1738273116202,0.03687304,3247.8,3247.7,3.0791]
[1738273116355,0.03687304,3247.8,3247.7,17.3791]
[1738273116558,3.07868,3248.2,3247.8,0.55]
[1738273116757,0.03700731,3248.1,3247.8,0.55]
[1738273116987,3.07868,3248.2,3247.8,0.55]
[1738273117193,3.07886,3248.0,3247.7,14.3]
[1738273117715,0.03669516,3247.9,3247.7,14.3]
[1738273120675,0.03669516,3247.9,3247.8,1.43]
[1738273122084,0.03669516,3247.9,3247.8,6.8]
[1738273122261,0.03669516,3247.9,3247.8,5.37]
[1738273123693,3.84911,3247.9,3247.8,5.37]
[1738273123902,3.88579065,3247.9,3247.8,5.37]
[1738273141594,3.88579065,3247.9,3247.0,3.07972]
[1738273141595,3.07952,3247.3,3247.0,1.47952727]
[1738273141900,0.03639373,3247.2,3247.0,1.47952727]
[1738273142096,3.07952,3247.3,3247.0,1.47952727]
[1738273142097,3.07952,3247.3,3247.0,3.05748]
[1738273142301,0.03687298,3247.1,3247.0,3.05748]
[1738273142516,3.07952,3247.3,3247.0,3.05748]
[1738273142724,0.03687298,3247.1,3247.0,3.05748]
[1738273142903,3.07952,3247.3,3247.0,3.05748]
[1738273143354,0.03691594,3247.2,3247.0,3.05748]
[1738273143748,3.0,3247.2,3247.0,1.57795273]
[1738273143952,3.0,3247.2,3246.8,14.3]
[1738273143953,3.07968,3247.1,3246.8,14.3]
[1738273144158,3.03687298,3247.1,3246.8,14.3]
[1738273144306,0.03687298,3247.1,3246.8,14.3]
[1738273145101,0.811,3247.4,3246.8,14.3]
[1738273145302,3.07933,3247.5,3246.8,14.3]
[1738273145303,0.03683001,3247.0,3246.9,3.11065494]
[1738273145550,6.96895,3247.9,3247.1,3.0796]
[1738273145850,4.55807727,3248.3,3247.3,3.07946]
[1738273145851,0.03710772,3247.8,3247.3,3.07946]
[1738273146209,3.0,3247.9,3247.3,3.07946]
[1738273146409,0.03706477,3247.7,3247.3,3.07946]
[1738273146606,0.03710772,3247.8,3247.3,3.07946]
[1738273146847,3.0,3247.9,3247.4,0.307946]
[1738273147027,0.03706477,3247.7,3247.4,0.307946]
[1738273147443,3.0,3247.9,3247.4,0.307946]
[1738273147646,0.03702183,3247.6,3247.4,0.307946]
[1738273147828,3.0,3247.9,3247.4,0.307946]
[1738273148030,3.0,3247.9,3247.5,0.3387406]
[1738273148730,3.07882,3248.0,3247.5,0.3387406]
[1738273149057,3.07882,3248.0,3247.5,9.2687406]
[1738273149797,3.88965,3248.2,3247.6,0.03078805]
[1738273149957,3.07865,3248.2,3247.6,0.03078805]
[1738273150363,3.07865,3248.2,3247.7,0.34487987]
[1738273150577,3.07865,3248.2,3247.8,0.03078691]
[1738273151694,3.83466,3248.4,3247.8,0.03078691]
[1738273151896,3.83466,3248.4,3247.7,0.34487987]
[1738273152917,3.07854,3248.3,3247.7,0.34487987]
[1738273154078,6.07854,3248.3,3247.7,0.34487987]
[1738273154285,3.83466,3248.4,3247.7,0.34487987]
[1738273154590,3.08346,3248.4,3247.8,0.34240699]
[1738273154794,0.03636311,3248.3,3247.8,14.33078429]
[1738273154992,0.03636311,3248.3,3247.9,12.00886]
[1738273155302,0.03636311,3248.3,3248.0,0.03078214]
[1738273155503,0.03636311,3248.3,3248.1,3.07872]
[1738273155667,0.005,3248.4,3248.3,3.07853]
[1738273155867,0.005,3248.4,3248.3,17.37853]
[1738273159806,0.04158448,3248.4,3248.3,17.37853]
[1738273160806,0.005,3248.4,3248.3,17.37853]
[1738273162781,0.005,3248.4,3248.3,17.58553]
[1738273162987,0.005,3248.4,3248.3,19.7437523]
[1738273163409,0.005,3248.4,3248.3,19.5367523]
[1738273163817,0.04182606,3248.4,3248.3,19.5367523]
[1738273164409,0.04182606,3248.4,3248.3,16.4582223]
[1738273164914,0.04182606,3248.4,3248.3,19.5367523]
[1738273166615,0.04182606,3248.4,3248.3,10.6067523]
[1738273168237,0.04182606,3248.4,3248.3,7.5282223]
[1738273168815,0.005,3248.4,3248.3,7.5282223]
[1738273174526,0.005,3248.4,3248.3,42.5282223]
[1738273178130,0.005,3248.4,3248.3,7.5282223]
[1738273179199,0.005,3248.4,3248.3,11.1567523]
[1738273180534,0.005,3248.4,3248.3,23.1017523]
[1738273180837,0.005,3248.4,3248.3,23.15804548]
[1738273180997,0.005,3248.4,3248.3,58.15804548]
[1738273183343,0.1259469,3248.8,3248.7,3.62815]
[1738273183545,0.1259469,3248.8,3248.7,4.38456634]
[1738273184411,0.1259469,3248.8,3248.7,18.68456634]
[1738273184606,0.1259469,3248.8,3248.7,53.653794]
[1738273184807,0.1259469,3248.8,3248.7,18.653794]
[1738273185346,0.1259469,3248.8,3248.7,18.72508025]
[1738273185810,0.1259469,3248.8,3248.7,21.93208025]
[1738273186920,0.7902,3249.7,3249.2,0.55]
[1738273187122,0.7902,3249.7,3249.3,0.3935458]
[1738273187316,0.7688,3250.0,3249.3,3.4711258]
[1738273187715,0.7688,3250.0,3249.6,3.0773]
[1738273188048,0.7688,3250.0,3249.4,0.5575]
[1738273188049,0.03689808,3249.9,3249.4,0.55]
[1738273188747,0.03689808,3249.9,3249.3,0.41905285]
[1738273188917,0.03689808,3249.9,3249.4,0.57890529]
[1738273189312,0.03689808,3249.9,3249.3,0.05627585]
[1738273189313,0.7724,3249.8,3249.3,0.05627585]
[1738273189517,3.84979,3249.5,3249.3,0.05627585]
[1738273190053,0.0368345,3249.4,3249.3,0.05627585]
[1738273190817,6.8976245,3249.4,3249.3,0.05627585]
[1738273191017,0.7833,3249.3,3248.6,14.3]
[1738273191219,0.7833,3249.0,3248.6,14.3]
[1738273191416,0.03651847,3248.9,3248.6,5.37]
[1738273191747,0.03651847,3248.9,3248.3,0.60372431]
[1738273192116,0.03651847,3248.9,3248.3,0.63450199]
[1738273192352,0.03651847,3248.9,3248.4,0.9564502]
[1738273192555,0.03651847,3248.9,3248.5,0.0307759]
[1738273193553,0.03651847,3248.9,3248.4,0.98722648]
[1738273194767,0.03651847,3248.9,3248.4,0.9564502]
[1738273195152,0.7833,3249.0,3248.4,0.9564502]
[1738273196360,0.7833,3249.0,3248.4,15.2564502]
[1738273196872,0.03651847,3248.9,3248.5,3.12998842]
[1738273198069,0.7833,3249.0,3248.5,3.12998842]
[1738273198269,0.03647555,3248.8,3248.4,15.2564502]
[1738273198473,3.0,3248.9,3248.4,15.2564502]
[1738273198667,0.03643263,3248.7,3248.4,15.2564502]
[1738273198827,3.0,3248.9,3248.4,15.2564502]
[1738273199166,0.03629721,3248.8,3248.4,14.3]
[1738273200346,3.86121,3249.0,3248.4,14.3]
[1738273200529,0.03623509,3248.7,3248.4,14.3]
[1738273200857,0.03619217,3248.6,3248.4,14.3]
[1738273201053,3.86121,3249.0,3248.4,14.3]
[1738273201388,0.03614924,3248.5,3248.4,14.3]
[1738273201559,3.86121,3249.0,3248.4,17.42998842]
[1738273201766,3.86121,3249.0,3248.4,14.3]
[1738273201947,3.11430092,3248.9,3248.4,14.3]
[1738273202150,0.7994,3248.8,3248.4,14.3]
[1738273202357,0.7994,3248.8,3248.4,5.37]
[1738273202656,0.03623509,3248.7,3248.4,5.37]
[1738273203058,0.7994,3248.8,3248.4,5.37]
[1738273203569,0.03623509,3248.7,3248.4,5.37]
[1738273203869,0.7994,3248.8,3248.4,5.37]
[1738273204271,0.03623509,3248.7,3248.4,5.37]
[1738273204569,0.7994,3248.8,3248.4,5.37]
[1738273204870,0.03623509,3248.7,3248.4,5.37]
[1738273205032,0.7994,3248.8,3248.4,5.37]
[1738273205468,0.03623509,3248.7,3248.4,5.37]
[1738273205675,0.03623509,3248.7,3248.4,5.97045027]
[1738273205860,0.7994,3248.8,3248.4,5.97045027]
[1738273206060,0.03619217,3248.6,3248.4,5.97045027]
[1738273206375,3.07772,3249.2,3248.4,5.97045027]
[1738273206376,0.8192,3249.5,3248.5,3.65910836]
[1738273206666,0.8192,3249.5,3248.6,4.59869586]
[1738273206878,0.8192,3249.5,3248.7,35.58077278]
[1738273207042,0.8192,3249.5,3248.7,35.55]
[1738273207244,2.88522341,3249.4,3248.7,35.55]
[1738273207435,5.96273341,3249.4,3248.7,35.55]
[1738273207635,5.96273341,3249.4,3248.7,38.67998842]
[1738273207835,2.88522341,3249.4,3248.7,38.67998842]
[1738273208058,2.88522341,3249.4,3248.7,3.67998842]
[1738273208272,2.88522341,3249.4,3248.7,0.55]
[1738273208472,5.96271341,3249.4,3248.7,0.55]
[1738273208684,0.8307,3249.1,3248.5,0.05628971]
[1738273208988,6.79369341,3249.1,3248.5,0.05628971]
[1738273209592,3.07796,3248.9,3248.5,0.05628971]
[1738273210092,6.79370341,3249.1,3248.5,0.05628971]
[1738273210995,6.79370341,3249.1,3248.6,1.15575178]
[1738273210996,0.8307,3249.1,3248.6,1.15575178]
[1738273211193,0.7523,3249.3,3248.6,1.15575178]
[1738273211490,0.7523,3249.3,3248.6,36.15575178]
[1738273211790,0.7523,3249.3,3248.6,1.15575178]
[1738273212541,0.03640537,3249.2,3248.6,1.15575178]
[1738273213095,3.07773,3249.2,3248.6,0.60575178]
[1738273213244,0.03638167,3249.1,3248.5,0.05628971]
[1738273213449,0.03638167,3249.1,3248.6,0.03077671]
[1738273213667,3.82989,3249.3,3248.6,0.03077671]
[1738273213865,0.03633601,3249.0,3248.6,0.03077671]
[1738273214069,3.07773,3249.2,3248.5,0.05628971]
[1738273214304,0.0362931,3248.9,3248.5,0.66236879]
[1738273214461,3.07773,3249.2,3248.5,0.05628971]
[1738273214663,0.0361702,3248.8,3248.5,0.05628971]
[1738273214986,3.07799,3248.9,3248.5,0.05628971]
[1738273215153,0.03609712,3248.7,3248.5,0.05628971]
[1738273215352,0.7679,3249.0,3248.5,0.05628971]
[1738273215551,0.03556917,3248.6,3248.5,0.05628971]
[1738273216057,3.84577,3249.0,3248.5,0.05628971]
[1738273216252,0.03569798,3248.9,3248.5,0.05628971]
[1738273232211,0.06679697,3248.9,3248.5,0.05628971]
[1738273234114,3.14480697,3248.9,3248.5,0.05628971]
[1738273234310,0.7915,3248.7,3248.5,0.05628971]
[1738273234809,0.06646106,3248.6,3248.5,0.05628971]
[1738273235160,0.7915,3248.7,3248.5,0.05628971]
[1738273236478,0.7711,3248.9,3248.5,0.05628971]
[1738273236902,0.06654496,3248.8,3248.5,0.05628971]
[1738273237767,3.84909,3248.9,3248.5,0.05628971]
[1738273238067,0.06649654,3248.7,3248.5,0.05628971]
[1738273238290,3.84909,3248.9,3248.5,0.05628971]
[1738273238695,0.06653849,3248.8,3248.5,0.05628971]
[1738273242025,5.38819393,3248.6,3248.5,0.05628971]
[1738273242176,3.0784,3248.5,3247.8,5.37]
[1738273242371,1.47875393,3248.4,3247.8,5.37]
[1738273243805,1.47875393,3248.4,3247.8,6.00063367]
[1738273244222,0.06614837,3248.3,3247.8,6.00063367]
[1738273244428,1.47875393,3248.4,3247.9,0.60006337]
[1738273244925,0.06614837,3248.3,3247.9,0.60006337]
[1738273245230,1.47875393,3248.4,3247.9,0.60006337]
[1738273245729,0.06614837,3248.3,3247.9,0.60006337]
[1738273250409,0.06614837,3248.3,3248.0,0.46123934]
[1738273250613,0.06614837,3248.3,3248.0,1.16743298]
[1738273252219,0.06614837,3248.3,3248.1,0.46123934]
[1738273254021,0.06614837,3248.3,3248.2,0.46123934]
[1738273260744,3.14467837,3248.3,3248.2,0.46123934]
[1738273260949,3.91527837,3248.3,3248.2,0.46123934]
[1738273261123,4.7625276,3248.3,3248.2,0.46123934]
[1738273261530,3.91527837,3248.3,3248.2,0.46123934]
[1738273265345,8.3940323,3248.3,3248.2,0.46123934]
[1738273265551,6.91527837,3248.3,3248.2,0.46123934]
[1738273267041,3.0792,3247.6,3247.2,0.48030258]
[1738273267257,3.8468,3247.6,3247.2,0.48030258]
[1738273267455,3.8468,3247.6,3247.2,1.12568876]
[1738273269397,3.8468,3247.6,3247.3,0.46069114]
[1738273271064,3.8468,3247.6,3247.4,0.46069114]
[1738273271592,0.0631587,3247.5,3247.4,0.46069114]
[1738273279488,0.0631587,3247.5,3247.4,0.6909361]
[1738273283007,0.0631587,3247.5,3247.4,0.87259859]
[1738273283213,0.7988,3248.2,3247.4,0.87259859]
[1738273283351,0.06070928,3248.1,3247.8,3.07894]
[1738273283683,1.47875393,3248.5,3247.9,0.03078368]
[1738273283898,1.47875393,3248.5,3247.9,1.51675816]
[1738273284107,1.47875393,3248.3,3247.9,1.97634398]
[1738273284458,3.13679012,3248.4,3247.9,1.51675816]
[1738273284459,1.47875393,3248.1,3247.9,1.51675816]
[1738273284814,0.05816225,3248.0,3247.9,1.51675816]
[1738273285112,0.05816225,3248.0,3247.6,7.73675816]
[1738273285417,0.05816225,3248.0,3247.6,9.45803684]
[1738273285773,0.05816225,3248.0,3247.6,9.93793946]
[1738273286804,1.47875393,3248.1,3247.6,9.93793946]
[1738273287121,1.47875393,3247.7,3247.6,8.21666078]
[1738273287267,2.31195393,3247.7,3247.6,8.21666078]
[1738273287718,2.37012652,3247.7,3247.6,8.21666078]
[1738273287863,0.89137259,3247.7,3247.6,8.21666078]
[1738273288229,0.05817259,3247.7,3247.6,8.21666078]
[1738273288427,2.28055393,3247.9,3247.6,0.71035607]
[1738273288733,0.05821457,3247.8,3247.6,0.71035607]
[1738273288882,0.05821457,3247.8,3247.6,0.23045345]
[1738273290311,3.13723457,3247.8,3247.6,0.23045345]
[1738273291532,7.06598742,3247.8,3247.6,0.23045345]
[1738273292640,3.98689742,3247.8,3247.7,0.23045345]
[1738273293132,3.98689742,3247.8,3247.7,0.51869943]
[1738273296222,3.98689742,3247.8,3247.7,0.98002382]
[1738273298341,3.13723457,3247.8,3247.7,0.98002382]
[1738273300187,0.05821457,3247.8,3247.7,0.98002382]
[1738273300679,3.13721457,3247.8,3247.7,0.98002382]
[1738273306545,0.05821457,3247.8,3247.7,0.98002382]
[1738273307090,3.07889,3248.0,3247.7,0.98002382]
[1738273307238,0.05907342,3247.8,3247.7,0.98002382]
[1738273307440,3.07889,3248.0,3247.7,0.98002382]
[1738273307691,0.05911536,3247.9,3247.7,0.98002382]
[1738273307991,0.05911536,3247.9,3247.8,0.98002382]
[1738273308637,3.07891,3247.9,3247.8,0.98002382]
[1738273308972,3.13803086,3247.9,3247.8,0.98002382]
[1738273316906,3.90759034,3247.9,3247.8,0.98002382]
[1738273317606,5.38634427,3247.9,3247.8,0.98002382]
[1738273317774,6.15044427,3247.9,3247.8,0.98002382]
[1738273327513,6.15044427,3247.9,3247.8,0.74957037]
[1738273340309,0.05912086,3247.9,3247.8,0.74957037]
[1738273340712,6.15699,3248.4,3247.8,0.74957037]
[1738273341005,3.07854,3248.3,3247.9,0.03078531]
[1738273341580,1.47875393,3248.5,3247.8,0.74957037]
[1738273341906,3.07869,3248.2,3247.8,0.74957037]
[1738273343198,3.07843,3248.4,3247.9,0.03078617]
[1738273343385,3.07843,3248.4,3247.9,1.32519936]
[1738273343585,3.07843,3248.4,3248.0,0.50231386]
[1738273343790,0.7793,3249.1,3248.0,0.50231386]
[1738273343791,3.07811,3248.8,3248.1,0.03078419]
[1738273343995,3.07827,3248.6,3248.1,0.03078419]
[1738273345072,3.07834,3248.5,3248.2,1.32519936]
[1738273346494,3.07834,3248.5,3248.3,0.74957037]
[1738273348515,3.07834,3248.5,3248.4,0.74957037]
[1738273349905,3.13572322,3248.5,3248.4,0.74957037]
[1738273356722,4.61447715,3248.5,3248.4,0.74957037]
[1738273360932,3.13572322,3248.5,3248.4,0.74957037]
[1738273363749,4.61447715,3248.5,3248.4,0.74957037]
[1738273364255,5.38374887,3248.5,3248.4,0.74957037]
[1738273364546,6.18764887,3248.5,3248.4,0.74957037]
[1738273365639,6.18764887,3248.5,3248.4,0.28824598]
[1738273365946,5.41837715,3248.5,3248.4,0.28824598]
[1738273366151,4.61447715,3248.5,3248.4,0.28824598]
[1738273369343,4.61447715,3248.5,3248.4,0.74828009]
[1738273371740,4.61447715,3248.5,3248.4,1.32398986]
[1738273374816,5.38387715,3248.5,3248.4,1.32398986]
[1738273375327,6.23008887,3248.5,3248.4,0.74828009]
[1738273377248,6.23008887,3248.5,3248.4,0.28824598]
[1738273378431,6.25303564,3248.5,3248.4,0.28824598]
[1738273379669,9.25303564,3248.5,3248.4,0.28824598]
[1738273379966,9.23008887,3248.5,3248.4,0.28824598]
[1738273380674,10.7088428,3248.5,3248.4,5.98e-06]
[1738273380822,10.7088428,3248.5,3247.5,0.46054032]
[1738273380823,9.9394428,3248.5,3247.5,0.46054032]
[1738273381027,4.55794393,3247.6,3247.5,0.46054032]
[1738273381322,4.61216723,3247.6,3247.5,0.46054032]
[1738273394156,4.61216723,3247.6,3247.5,0.74792216]
[1738273394696,4.55794393,3247.6,3247.5,0.74792216]
[1738273395391,4.61002185,3247.6,3247.5,0.74792216]
[1738273395700,5.45812403,3247.6,3247.5,0.74792216]
[1738273397266,5.45812403,3247.6,3247.5,0.28738184]
[1738273401267,6.28392403,3247.6,3247.5,0.28738184]
[1738273402796,3.07941,3247.4,3246.9,0.46054032]
[1738273403002,3.07976,3247.0,3246.9,0.46054032]
[1738273403392,3.13119405,3247.0,3246.9,0.46054032]
[1738273404759,3.13119405,3247.0,3246.9,0.74806019]
[1738273413546,0.05143405,3247.0,3246.9,5.30667412]
[1738273413723,3.07935,3247.5,3246.9,5.83734153]
[1738273413900,0.04975558,3247.4,3247.0,35.0]
[1738273414408,0.04975558,3247.4,3247.0,0.74806019]
[1738273414615,3.12914558,3247.4,3247.0,0.74806019]
[1738273414812,6.20861558,3247.4,3247.0,1.63978034]
[1738273415050,3.07951,3247.3,3247.0,1.63978034]
[1738273415196,3.07951,3247.3,3247.0,0.74806019]
[1738273415397,0.0502234,3247.2,3247.0,0.74806019]
[1738273415627,3.07967,3247.1,3247.0,0.74806019]
[1738273415944,3.12985143,3247.1,3247.0,0.74806019]
[1738273416359,3.12985143,3247.1,3246.6,0.206]
[1738273416519,3.07983,3247.0,3246.6,0.59728429]
[1738273416722,0.05009748,3246.9,3246.6,0.59728429]
[1738273418161,0.05009748,3246.9,3246.7,0.74892931]
[1738273419417,3.07965,3247.2,3246.7,0.74892931]
[1738273419620,0.05005824,3246.8,3246.6,3.67740429]
[1738273419923,3.07967,3247.1,3246.7,0.51561582]